fUSD/lending_fUSD_20241202
["ID","MTS","AMOUNT","RATE_DAILY","PERIOD"]
[343975811,1733165306295,1333.32,0.00025,120]
[343975812,1733165306994,601.13,0.00025,120]
[343975813,1733165307046,1502.31,0.00025,120]
[343975814,1733165307138,500.0,0.00025,120]
[343975815,1733165308011,500.0,0.00025,120]
[343975816,1733165308718,500.0,0.00025,120]
[343975817,1733165308890,2007.31,0.00025,120]
[343975818,1733165308942,500.0,0.00025,120]
[343975819,1733165309486,500.0,0.00025,120]
[343975820,1733165309626,2627.31,0.00025,120]
[343975821,1733165309678,2361.98,0.00025,120]
[343975822,1733165309722,6528.11,0.00025,120]
[343975823,1733165309778,2502.27,0.00025,120]
[343975824,1733165310083,3005.68,0.00025,120]
[343975825,1733165310128,804.55,0.00025,120]
[343975826,1733165311861,991.35,0.00025,120]
[343975827,1733165312095,979.68,0.00025,120]
[343975828,1733165312172,500.0,0.00025,120]
[343975829,1733165312221,500.0,0.00025,120]
[343975830,1733165312429,1663.37,0.00025,120]
[343975831,1733165312506,500.0,0.00025,120]
[343975832,1733165312557,3937.97,0.00025,120]
[343975833,1733165313106,1342.5,0.00025,120]
[343975834,1733165313765,500.0,0.00025,120]
[343975835,1733165313829,1709.97,0.00025,120]
[343975836,1733165314700,500.0,0.00025,120]
[343975837,1733165315278,500.0,0.00025,120]
[343975838,1733165315421,1508.99,0.00025,120]
[343975839,1733165315514,2828.82,0.00025,120]
[343975840,1733165316688,814.89,0.00025,120]
[343975841,1733165316911,500.0,0.00025,120]
[343975842,1733165318366,8120.58,0.00025,120]
[343975843,1733165318481,1201.65,0.00025,120]
[343975844,1733165319423,1613.09,0.00025,120]
[343975845,1733165319937,500.0,0.00025,120]
[343975846,1733165320596,582.73,0.00025,120]
[343975847,1733165320642,568.07,0.00025,120]
[343975848,1733165320691,1838.11,0.00025,120]
[343975849,1733165320770,500.0,0.00025,120]
[343975850,1733165321284,1022.94,0.00025,120]
[343975851,1733165321338,500.0,0.00025,120]
[343975852,1733165322126,5418.28,0.00025,120]
[343975853,1733165322198,500.0,0.00025,120]
[343975854,1733165323123,897.29,0.00025,120]
[343975855,1733165323491,500.0,0.00025,120]
[343975856,1733165324323,606.84,0.00025,120]
[343975857,1733165324738,22645.44,0.00025,120]
[343975858,1733165325326,1465.8,0.00025,120]
[343975859,1733165325939,500.0,0.00025,120]
[343975860,1733165327516,6592.69,0.00025,120]
[343975861,1733165327624,903.14,0.00025,120]
[343975862,1733165327719,500.0,0.00025,120]
[343975863,1733165327785,500.0,0.00025,120]
[343975864,1733165328792,500.0,0.00025,120]
[343975865,1733165329207,1185.82,0.00025,120]
[343975866,1733165329501,3614.56,0.00025,120]
[343975867,1733165329599,500.0,0.00025,120]
[343975868,1733165329660,500.0,0.00025,120]
[343975869,1733165329714,500.0,0.00025,120]
[343975870,1733165329763,3828.39,0.00025,120]
[343975871,1733165329977,500.0,0.00025,120]
[343975872,1733165331091,500.0,0.00025,120]
[343975873,1733165332603,34548.64,0.00025,120]
[343975874,1733165332740,3538.2,0.00025,120]
[343975875,1733165333589,674.34,0.00025,120]
[343975876,1733165333683,1975.94,0.00025,120]
[343975877,1733165333995,637.9,0.00025,120]
[343975878,1733165334265,500.0,0.00025,120]
[343975879,1733165334319,500.0,0.00025,120]
[343975880,1733165334387,947.47,0.00025,120]
[343975881,1733165334721,7776.38,0.00025,120]
[343975882,1733165335021,578.22,0.00025,120]
[343975883,1733165335230,500.0,0.00025,120]
[343975884,1733165335418,1293.58,0.00025,120]
[343975885,1733165335487,2121.78,0.00025,120]
[343975886,1733165336425,559.94,0.00025,120]
[343975887,1733165337335,3767.13,0.00025,120]
[343975888,1733165337382,500.0,0.00025,120]
[343975889,1733165338944,500.0,0.00025,120]
[343975890,1733165339698,1145.3,0.00025,120]
[343975891,1733165340202,929.73,0.00025,120]
[343975892,1733165340515,500.0,0.00025,120]
[343975893,1733165340888,676.72,0.00025,120]
[343975894,1733165340935,1404.0,0.00025,120]
[343975895,1733165341084,2902.34,0.00025,120]
[343975896,1733165341993,4050.52,0.00025,120]
[343975897,1733165342191,507.83,0.00025,120]
[343975898,1733165343131,500.0,0.00025,120]
[343975899,1733165343208,806.75,0.00025,120]
[343975900,1733165343649,500.0,0.00025,120]
[343975901,1733165343971,2751.43,0.00025,120]
[343975902,1733165344094,3910.91,0.00025,120]
[343975903,1733165344592,500.0,0.00025,120]
[343975904,1733165344980,1785.78,0.00025,120]
[343975905,1733165345313,671.04,0.00025,120]
[343975906,1733165345692,2166.79,0.00025,120]
[343975907,1733165346491,500.0,0.00025,120]
[343975908,1733165346792,10026.69,0.00025,120]
[343975909,1733165347257,500.0,0.00025,120]
[343975910,1733165347978,2354.06,0.00025,120]
[343975911,1733165348248,2569.75,0.00025,120]
[343975912,1733165349710,500.0,0.00025,120]
[343975913,1733165349866,569.17,0.00025,120]
[343975914,1733165350840,500.0,0.00025,120]
[343975915,1733165350890,897.49,0.00025,120]
[343975916,1733165351292,2909.4,0.00025,120]
[343975917,1733165352936,1615.38,0.00025,120]
[343975918,1733165353584,500.0,0.00025,120]
[343975919,1733165353781,500.0,0.00025,120]
[343975920,1733165353844,1133.27,0.00025,120]
[343975921,1733165353909,500.0,0.00025,120]
[343975922,1733165355082,2820.52,0.00025,120]
[343975923,1733165355620,500.0,0.00025,120]
[343975924,1733165355676,5169.58,0.00025,120]
[343975925,1733165355761,500.0,0.00025,120]
[343975926,1733165356481,507.65,0.00025,120]
[343975927,1733165356809,1367.82,0.00025,120]
[343975928,1733165356998,942.74,0.00025,120]
[343975929,1733165357180,728.78,0.00025,120]
[343975930,1733165357533,5326.78,0.00025,120]
[343975931,1733165357839,14784.1,0.00025,120]
[343975932,1733165357892,1859.06,0.00025,120]
[343975933,1733165358064,7545.85,0.00025,120]
[343975934,1733165358659,4577.19,0.00025,120]
[343975935,1733165358796,5132.61,0.00025,120]
[343975936,1733165358896,1491.9,0.00025,120]
[343975937,1733165359131,1676.43,0.00025,120]
[343975938,1733165360921,3174.45,0.00025,120]
[343975939,1733165361494,878.61,0.00025,120]
[343975940,1733165363386,1160.53,0.00025,120]
[343975941,1733165363438,1578.94,0.00025,120]
[343975942,1733165364574,500.0,0.00025,120]
[343975943,1733165365050,500.0,0.00025,120]
[343975944,1733165365228,969.25,0.00025,120]
[343975945,1733165365475,1731.02,0.00025,120]
[343975946,1733165365546,500.0,0.00025,120]
[343975947,1733165366006,1448.03,0.00025,120]
[343975948,1733165366216,500.0,0.00025,120]
[343975949,1733165366660,22940.05,0.00025,120]
[343975950,1733165366710,1563.47,0.00025,120]
[343975951,1733165366898,1439.66,0.00025,120]
[343975952,1733165367182,164.53376247,0.00025,120]
[343975953,1733165367392,1662.47,0.00025,120]
[343975954,1733165368073,500.0,0.00025,120]
[343975955,1733165368841,3506.35,0.00025,120]
[343975956,1733165369203,5866.91,0.00025,120]
[343975957,1733165369547,500.0,0.00025,120]
[343975958,1733165369628,756.21,0.00025,120]
[343975959,1733165373389,1478.23,0.00025,120]
[343975960,1733165373669,554.24,0.00025,120]
[343975961,1733165374225,1273.84,0.00025,120]
[343975962,1733165374340,850.13,0.00025,120]
[343975963,1733165374396,3629.12,0.00025,120]
[343975964,1733165374530,1329.64,0.00025,120]
[343975965,1733165375346,14911.68,0.00025,120]
[343975966,1733165375694,3404.82,0.00025,120]
[343975967,1733165375753,500.0,0.00025,120]
[343975968,1733165376034,757.3,0.00025,120]
[343975969,1733165377481,3805.31,0.00025,120]
[343975970,1733165378257,500.0,0.00025,120]
[343975971,1733165378372,500.0,0.00025,120]
[343975972,1733165378999,10419.99,0.00025,120]
[343975973,1733165379103,5817.96,0.00025,120]
[343975974,1733165380205,500.0,0.00025,120]
[343975975,1733165381044,500.0,0.00025,120]
[343975976,1733165383403,500.0,0.00025,120]
[343975977,1733165383583,500.0,0.00025,120]
[343975978,1733165384400,5903.42,0.00025,120]
[343975979,1733165384486,605.28,0.00025,120]
[343975980,1733165384548,500.0,0.00025,120]
[343975981,1733165384957,3511.25,0.00025,120]
[343975982,1733165385002,500.0,0.00025,120]
[343975983,1733165385165,645.32,0.00025,120]
[343975984,1733165385233,510.5,0.00025,120]
[343975985,1733165385315,2867.86,0.00025,120]
[343975986,1733165386385,1896.23,0.00025,120]
[343975987,1733165387719,2178.0,0.00025,120]
[343975988,1733165388291,969.25,0.00025,120]
[343975989,1733165388695,2060.75,0.00025,120]
[343975990,1733165388799,1193.08,0.00025,120]
[343975991,1733165388926,883.22,0.00025,120]
[343975992,1733165390307,331.84631339,0.00025,120]
[343975993,1733165390894,500.0,0.00025,120]
[343975994,1733165391192,500.0,0.00025,120]
[343975995,1733165391403,607.55,0.00025,120]
[343975996,1733165393806,500.0,0.00025,120]
[343975997,1733165394762,500.0,0.00025,120]
[343975998,1733165395111,540.63,0.00025,120]
[343975999,1733165395315,5203.88,0.00025,120]
[343976000,1733165396075,5837.01,0.00025,120]
[343976001,1733165396142,4475.55,0.00025,120]
[343976002,1733165396221,4837.51,0.00025,120]
[343976003,1733165396615,500.0,0.00025,120]
[343976004,1733165397709,1534.8,0.00025,120]
[343976005,1733165397984,618.4,0.00025,120]
[343976006,1733165398889,1614.33,0.00025,120]
[343976007,1733165399511,1262.63,0.00025,120]
[343976008,1733165400202,500.0,0.00025,120]
[343976009,1733165400609,500.0,0.00025,120]
[343976010,1733165400663,3714.04,0.00025,120]
[343976011,1733165400906,14280.3,0.00025,120]
[343976012,1733165401334,500.0,0.00025,120]
[343976013,1733165401410,530.45,0.00025,120]
[343976014,1733165401587,2935.64,0.00025,120]
[343976015,1733165403303,500.0,0.00025,120]
[343976016,1733165403500,600.22937177,0.00025,120]
[343976017,1733165403710,500.0,0.00025,120]
[343976018,1733165403770,3150.73,0.00025,120]
[343976019,1733165405158,857.99,0.00025,120]
[343976020,1733165405940,2931.11,0.00025,120]
[343976021,1733165406018,500.0,0.00025,120]
[343976022,1733165406200,2651.68,0.00025,120]
[343976023,1733165406466,544.99,0.00025,120]
[343976024,1733165407129,4434.87,0.00025,120]
[343976025,1733165408106,513.46,0.00025,120]
[343976026,1733165408178,500.0,0.00025,120]
[343976027,1733165409275,2768.85,0.00025,120]
[343976028,1733165409377,500.0,0.00025,120]
[343976029,1733165410346,629.94,0.00025,120]
[343976030,1733165410757,6060.01,0.00025,120]
[343976031,1733165410807,4703.15,0.00025,120]
[343976032,1733165411000,9695.7,0.00025,120]
[343976033,1733165411733,500.0,0.00025,120]
[343976034,1733165414070,500.0,0.00025,120]
[343976035,1733165414283,10220.41,0.00025,120]
[343976036,1733165414582,500.0,0.00025,120]
[343976037,1733165415535,500.0,0.00025,120]
[343976038,1733165415664,7581.82,0.00025,120]
[343976039,1733165416644,1214.28,0.00025,120]
[343976040,1733165417270,500.0,0.00025,120]
[343976041,1733165417323,500.0,0.00025,120]
[343976042,1733165417857,1361.43,0.00025,120]
[343976043,1733165418294,205.27,0.00025,120]
[343976044,1733165418371,887.31,0.00025,120]
[343976045,1733165418703,500.0,0.00025,120]
[343976046,1733165419024,727.97,0.00025,120]
[343976047,1733165419172,500.0,0.00025,120]
[343976048,1733165419686,1796.27,0.00025,120]
[343976049,1733165419903,918.83,0.00025,120]
[343976050,1733165419953,5256.27,0.00025,120]
[343976051,1733165420385,500.0,0.00025,120]
[343976052,1733165420435,10695.24,0.00025,120]
[343976053,1733165420682,3442.59,0.00025,120]
[343976054,1733165420736,500.0,0.00025,120]
[343976055,1733165420835,3407.27,0.00025,120]
[343976056,1733165421469,500.0,0.00025,120]
[343976057,1733165421743,588.14,0.00025,120]
[343976058,1733165423670,2405.55,0.00025,120]
[343976059,1733165424072,500.0,0.00025,120]
[343976060,1733165424558,2376.94,0.00025,120]
[343976061,1733165426689,659.11,0.00025,120]
[343976062,1733165426810,500.0,0.00025,120]
[343976063,1733165427293,500.0,0.00025,120]
[343976064,1733165427840,500.0,0.00025,120]
[343976065,1733165428077,500.0,0.00025,120]
[343976066,1733165428724,2897.0,0.00025,120]
[343976067,1733165429052,500.0,0.00025,120]
[343976068,1733165429266,500.0,0.00025,120]
[343976069,1733165429418,1326.22,0.00025,120]
[343976070,1733165429519,500.0,0.00025,120]
[343976071,1733165429619,941.95,0.00025,120]
[343976072,1733165429730,4045.42,0.00025,120]
[343976073,1733165429786,500.0,0.00025,120]
[343976074,1733165429836,500.0,0.00025,120]
[343976075,1733165429919,1543.22,0.00025,120]
[343976076,1733165430145,3188.09,0.00025,120]
[343976077,1733165430612,500.0,0.00025,120]
[343976078,1733165430676,695.56,0.00025,120]
[343976079,1733165430808,500.0,0.00025,120]
[343976090,1733165432274,500.0,0.00025,120]
[343976093,1733165432292,-166.66,7.371e-05,2]
[343976095,1733165432301,-172.39,7.376e-05,2]
[343976096,1733165432317,-82.61037495,7.376e-05,2]
[343976097,1733165432516,3839.89,0.00025,120]
[343976098,1733165432541,-412.46,7.376e-05,2]
[343976112,1733165433017,1449.77,0.00025,120]
[343976113,1733165437911,3651.07,0.00025,120]
[343976114,1733165438351,2369.02,0.00025,120]
[343976208,1733165439510,-2000.00183886,7.376e-05,2]
[343976210,1733165439523,-2034.96999714,7.387e-05,2]
[343976214,1733165439550,-460.10221665,7.387e-05,2]
[343976216,1733165439562,-684.0,7.397e-05,2]
[343976218,1733165439572,-2495.07221379,7.397e-05,2]
[343976220,1733165439581,-150.0,7.454e-05,2]
[343976222,1733165439590,-150.0,7.531e-05,2]
[343976224,1733165439600,-150.0,7.542e-05,2]
[343976226,1733165439610,-150.0,7.562e-05,2]
[343976228,1733165439619,-150.0,7.57e-05,2]
[343976230,1733165439628,-150.0,7.576e-05,2]
[343976232,1733165439637,-300.0,7.599e-05,2]
[343976234,1733165439647,-12641.66567157,7.6e-05,2]
[343976235,1733165439656,-2500.0,7.6e-05,2]
[343976237,1733165439665,-535.48212679,7.673e-05,2]
[343976239,1733165439674,-199.7996,7.673e-05,2]
[343976241,1733165439684,-500.0,7.673e-05,2]
[343976243,1733165439694,-260.06,7.687e-05,2]
[343976245,1733165439704,-194.20435917,7.689e-05,2]
[343976248,1733165439714,-150.0,7.697e-05,2]
[343976249,1733165439723,-1112.625,7.698e-05,2]
[343976252,1733165439733,-150.0,7.698e-05,2]
[343976254,1733165439743,-344.765,7.698e-05,2]
[343976256,1733165439753,-483.256,7.698e-05,2]
[343976258,1733165439763,-444.73,7.699e-05,2]
[343976260,1733165439773,-150.01,7.699e-05,2]
[343976262,1733165439783,-2137.605,7.699e-05,2]
[343976263,1733165439792,-174.621,7.699e-05,2]
[343976266,1733165439801,-2971.03,7.699e-05,2]
[343976267,1733165439812,-11146737.65730733,7.7e-05,2]
[343976272,1733165439843,-594334.24663019,7.7e-05,2]
[343976287,1733165440067,-16131.68368021,7.7e-05,2]
[343976303,1733165440190,500.0,0.00025,120]
[343976309,1733165440244,5121.79,0.00025,120]
[343976389,1733165440975,500.0,0.00025,120]
[343976397,1733165441039,-150.0,7.698e-05,2]
[343976398,1733165441048,-193.84261985,7.7e-05,2]
[343976400,1733165441061,-1365.85001,7.7e-05,2]
[343976402,1733165441072,-3615.10923,7.7e-05,2]
[343976415,1733165441202,-19.24863115,7.7e-05,2]
[343976417,1733165441214,-1166.50975682,7.7e-05,2]
[343976428,1733165441340,500.0,0.00025,120]
[343976431,1733165441360,-9186.41392857,7.7e-05,2]
[343976495,1733165442042,580.0,0.00025,120]
[343976506,1733165442451,1115.25,0.00025,120]
[343976507,1733165442504,500.0,0.00025,120]
[343976508,1733165442582,500.0,0.00025,120]
[343976509,1733165442673,2158.69,0.00025,120]
[343976510,1733165442954,3682.53,0.00025,120]
[343976512,1733165443382,500.0,0.00025,120]
[343976514,1733165443679,-7319498.46325667,7.7e-05,2]
[343976518,1733165444092,500.0,0.00025,120]
[343976519,1733165444117,-16032.72395126,7.7e-05,2]
[343976520,1733165444128,-23233.58788221,7.7e-05,2]
[343976522,1733165444139,-1930.24380968,7.7e-05,2]
[343976527,1733165444191,-253.4615,7.7e-05,2]
[343976528,1733165444203,-8994.85185417,7.7e-05,2]
[343976529,1733165444214,-3274.50707214,7.7e-05,2]
[343976530,1733165444228,-419.81087525,7.7e-05,2]
[343976531,1733165444245,-744.5,7.7e-05,2]
[343976532,1733165444416,-1007.02,7.7e-05,2]
[343976533,1733165444428,-20758.7363186,7.7e-05,2]
[343976534,1733165444440,-56885.14052014,7.7e-05,2]
[343976535,1733165444598,2462.44,0.00025,120]
[343976536,1733165444784,500.0,0.00025,120]
[343976541,1733165445902,13353.75,0.00025,120]
[343976546,1733165446118,-189834.147598,7.7e-05,2]
[343976547,1733165446129,-564312.06802268,7.7e-05,2]
[343976548,1733165446140,-423.81411528,7.7e-05,2]
[343976549,1733165446192,-1820.16270379,7.7e-05,2]
[343976550,1733165446203,-2550.69247321,7.7e-05,2]
[343976551,1733165446266,-1671.010578,7.7e-05,2]
[343976552,1733165446279,-3191.415015,7.7e-05,2]
[343976553,1733165446290,-680.1840175,7.7e-05,2]
[343976554,1733165446350,-958.04999796,7.7e-05,2]
[343976560,1733165487608,500.0,0.00025,120]
[343976561,1733165487682,500.0,0.00025,120]
[343976562,1733165489714,2661.94,0.00025,120]
[343976563,1733165489775,266.77,0.00025,120]
[343976564,1733165490717,500.0,0.00025,120]
[343976565,1733165490870,598.62,0.00025,120]
[343976566,1733165491260,2319.52,0.00025,120]
[343976567,1733165491696,500.0,0.00025,120]
[343976568,1733165491893,500.0,0.00025,120]
[343976569,1733165491998,500.0,0.00025,120]
[343976570,1733165492094,500.0,0.00025,120]
[343976571,1733165494517,500.0,0.00025,120]
[343976572,1733165494657,500.0,0.00025,120]
[343976573,1733165494862,500.0,0.00025,120]
[343976574,1733165495657,500.0,0.00025,120]
[343976575,1733165495727,500.0,0.00025,120]
[343976576,1733165495807,531.65,0.00025,120]
[343976577,1733165496560,811.66,0.00025,120]
[343976578,1733165496659,2440.54,0.00025,120]
[343976579,1733165496745,545.24,0.00025,120]
[343976580,1733165498489,500.0,0.00025,120]
[343976581,1733165498839,500.0,0.00025,120]
[343976582,1733165499455,500.0,0.00025,120]
[343976583,1733165499568,500.0,0.00025,120]
[343976584,1733165499935,570.67,0.00025,120]
[343976585,1733165500414,500.0,0.00025,120]
[343976586,1733165500845,912.85,0.00025,120]
[343976587,1733165501039,500.0,0.00025,120]
[343976588,1733165501109,503.19,0.00025,120]
[343976589,1733165501163,613.78,0.00025,120]
[343976590,1733165501236,600.13969648,0.00025,120]
[343976591,1733165502038,500.0,0.00025,120]
[343976592,1733165502460,500.0,0.00025,120]
[343976593,1733165503266,326.36,0.00025,120]
[343976594,1733165503365,468.07,0.00025,120]
[343976595,1733165503891,1607.08,0.00025,120]
[343976596,1733165504859,984.43,0.00025,120]
[343976597,1733165504972,1377.52,0.00025,120]
[343976598,1733165505227,1837.77,0.00025,120]
[343976599,1733165505277,1349.25,0.00025,120]
[343976600,1733165505671,890.64,0.00025,120]
[343976601,1733165506268,500.0,0.00025,120]
[343976602,1733165506335,500.0,0.00025,120]
[343976603,1733165507073,1743.53,0.00025,120]
[343976604,1733165507325,500.0,0.00025,120]
[343976605,1733165507803,682.14,0.00025,120]
[343976606,1733165509562,2017.79,0.00025,120]
[343976607,1733165509873,1284.07,0.00025,120]
[343976608,1733165509930,764.87,0.00025,120]
[343976609,1733165510491,500.0,0.00025,120]
[343976610,1733165511417,1451.56,0.00025,120]
[343976611,1733165511481,917.02,0.00025,120]
[343976612,1733165511964,812.58,0.00025,120]
[343976613,1733165512127,500.0,0.00025,120]
[343976614,1733165513023,500.0,0.00025,120]
[343976615,1733165513069,500.0,0.00025,120]
[343976616,1733165513253,6446.45,0.00025,120]
[343976617,1733165513852,500.0,0.00025,120]
[343976618,1733165514527,500.0,0.00025,120]
[343976619,1733165514589,1160.38,0.00025,120]
[343976620,1733165515239,1950.33,0.00025,120]
[343976621,1733165515298,500.0,0.00025,120]
[343976622,1733165515354,500.0,0.00025,120]
[343976623,1733165515516,3150.73,0.00025,120]
[343976624,1733165516184,500.0,0.00025,120]
[343976625,1733165516237,190.86,0.00025,120]
[343976626,1733165516298,1372.64,0.00025,120]
[343976627,1733165516986,500.0,0.00025,120]
[343976628,1733165517152,1345.88,0.00025,120]
[343976629,1733165517219,6333.27,0.00025,120]
[343976630,1733165517888,500.0,0.00025,120]
[343976631,1733165518448,500.0,0.00025,120]
[343976632,1733165518520,500.0,0.00025,120]
[343976633,1733165518852,1294.72,0.00025,120]
[343976634,1733165518908,6444.67,0.00025,120]
[343976635,1733165519007,5657.44,0.00025,120]
[343976636,1733165519057,1487.72,0.00025,120]
[343976637,1733165520106,3240.77,0.00025,120]
[343976638,1733165520384,4076.34,0.00025,120]
[343976639,1733165521656,500.0,0.00025,120]
[343976640,1733165522065,500.0,0.00025,120]
[343976641,1733165522319,1786.36,0.00025,120]
[343976642,1733165523784,684.17,0.00025,120]
[343976643,1733165523865,500.0,0.00025,120]
[343976644,1733165524208,5426.35,0.00025,120]
[343976645,1733165524578,500.0,0.00025,120]
[343976646,1733165525323,22477.51,0.00025,120]
[343976647,1733165526265,641.83,0.00025,120]
[343976648,1733165526942,3102.05,0.00025,120]
[343976649,1733165527076,2757.86,0.00025,120]
[343976650,1733165527535,6243.93,0.00025,120]
[343976651,1733165529276,733.2,0.00025,120]
[343976652,1733165529358,5189.59,0.00025,120]
[343976653,1733165529450,2921.9,0.00025,120]
[343976654,1733165530825,4017.56,0.00025,120]
[343976655,1733165531218,1091.11,0.00025,120]
[343976656,1733165531277,835.74,0.00025,120]
[343976657,1733165531480,500.0,0.00025,120]
[343976658,1733165532059,2352.3,0.00025,120]
[343976659,1733165532170,500.0,0.00025,120]
[343976660,1733165532719,500.0,0.00025,120]
[343976661,1733165532785,1063.7,0.00025,120]
[343976662,1733165535430,241.46175041,0.00025,120]
[343976663,1733165536575,806.28,0.00025,120]
[343976664,1733165537411,2973.23,0.00025,120]
[343976665,1733165537487,500.0,0.00025,120]
[343976666,1733165538510,510.57453379,0.00025,120]
[343976667,1733165538624,4015.36,0.00025,120]
[343976668,1733165538914,1433.32,0.00025,120]
[343976669,1733165539472,500.0,0.00025,120]
[343976670,1733165539937,4513.38,0.00025,120]
[343976671,1733165540118,2194.23,0.00025,120]
[343976672,1733165540344,1974.88,0.00025,120]
[343976673,1733165540683,937.73,0.00025,120]
[343976674,1733165541997,500.0,0.00025,120]
[343976675,1733165542072,500.0,0.00025,120]
[343976676,1733165542904,500.0,0.00025,120]
[343976677,1733165545771,1509.57,0.00025,120]
[343976678,1733165545930,948.79,0.00025,120]
[343976679,1733165546720,500.0,0.00025,120]
[343976680,1733165546788,7265.91,0.00025,120]
[343976681,1733165546845,536.61,0.00025,120]
[343976682,1733165547009,500.0,0.00025,120]
[343976683,1733165547098,500.0,0.00025,120]
[343976684,1733165547769,1785.16,0.00025,120]
[343976685,1733165547928,500.0,0.00025,120]
[343976686,1733165548538,806.4,0.00025,120]
[343976687,1733165548960,2924.44,0.00025,120]
[343976688,1733165549300,500.0,0.00025,120]
[343976689,1733165550855,5171.09,0.00025,120]
[343976690,1733165551010,3773.88,0.00025,120]
[343976691,1733165551157,1824.68,0.00025,120]
[343976692,1733165552696,500.0,0.00025,120]
[343976693,1733165552840,500.0,0.00025,120]
[343976694,1733165552933,1038.16,0.00025,120]
[343976695,1733165552976,500.0,0.00025,120]
[343976696,1733165553687,3976.86,0.00025,120]
[343976697,1733165553839,500.0,0.00025,120]
[343976698,1733165555226,1147.32,0.00025,120]
[343976699,1733165555319,508.34,0.00025,120]
[343976700,1733165556180,652.48,0.00025,120]
[343976701,1733165556248,605.53,0.00025,120]
[343976702,1733165557348,823.11,0.00025,120]
[343976703,1733165557395,500.0,0.00025,120]
[343976704,1733165557519,9608.91,0.00025,120]
[343976705,1733165557899,2095.96,0.00025,120]
[343976706,1733165558676,5155.38,0.00025,120]